[Event "Czech Extraliga 2023-24"]
[Site "Czech Republic"]
[Date "2024.02.10"]
[Round "7.3"]
[White "Simacek, Pavel"]
[Black "Movsesian, Sergei"]
[Result "0-1"]
[ECO "E36"]
[WhiteElo "2456"]
[BlackElo "2604"]
[Annotator "RC"]
[PlyCount "194"]
[EventDate "2023.10.14"]
[EventCountry "CZE"]
[SourceTitle "playchess.com"]
[Source "ChessBase"]
[SourceQuality "1"]
[TimeControl "40/5400+30:1800+30"]

1. d4 {[%emt 0:00:15]} Nf6 {[%emt 0:00:12]} 2. c4 {[%emt 0:00:08]} e6 {[%emt 0:01:35]} 3. Nc3 {[%emt 0:00:16]} Bb4 {[%emt 0:00:09]} 4. Qc2 {[%emt 0:00:32]} d5 {[%emt 0:00:23]} 5. a3 {[%emt 0:01:45]} Bxc3+ {[%emt 0:00:20]} 6. Qxc3 {[%emt 0:00:04]} O-O {[%emt 0:00:16]} 7. Bg5 {[%emt 0:01:25]} dxc4 {[%emt 0:01:10]} 8. Qxc4 {[%emt 0:00:15]} b6 {[%emt 0:00:05]} 9. Rd1 {[%emt 0:00:21]} Ba6 {[%emt 0:01:12]} 10. Qa4 {[%emt 0:00:08]} h6 {[%emt 0:01:31]} 11. Bh4 {[%emt 0:00:41]} Qe7 {[%emt 0:00:47]} 12. Nf3 {[%emt 0:01:51]} Rd8 {[%emt 0:03:36]} 13. Bxf6 {[%emt 0:16:20]} Qxf6 {[%emt 0:02:45]} 14. g3 {[%emt 0:04:11]} Bb7 {[%emt 0:05:25]} 15. Bg2 {[%emt 0:00:19]} c5 {[%emt 0:01:09]} 16. O-O {[%emt 0:04:28]} Bc6 {[%emt 0:06:19]} 17. Qc4 {[%emt 0:00:20]} Nd7 {[%emt 0:03:54]} 18. dxc5 {[%emt 0:21:29]} Bd5 {[%emt 0:07:13]} 19. Qd4 {[%emt 0:01:07]} Nxc5 {[%emt 0:00:30]} 20. b4 {[%emt 0:11:43]} Na4 {[%emt 0:04:08]} 21. e4 {[%emt 0:03:15]} Bb7 {[%emt 0:04:23]} 22. Qe3 {[%emt 0:00:04]} Qc3 {[%emt 0:08:58]} 23. Qf4 {[%emt 0:00:40]} Qf6 {[%emt 0:06:01]} 24. Qe3 {[%emt 0:02:21]} Rac8 {[%emt 0:01:46]} 25. e5 {[%emt 0:03:27]} Qe7 {[%emt 0:01:07]} 26. Rxd8+ {[%emt 0:01:18]} Qxd8 {[%emt 0:00:49]} 27. Rc1 {[%emt 0:00:08]} Rxc1+ {[%emt 0:02:28]} 28. Qxc1 {[%emt 0:00:03]} b5 {[%emt 0:36:19]} 29. Ne1 {[%emt 0:11:41]} Bxg2 {[%emt 0:00:00]} 30. Nxg2 {[%emt 0:00:05]} Qd4 {[%emt 0:00:00]} 31. Qc8+ {[%emt 0:05:49]} Kh7 {[%emt 0:00:00]} 32. Nf4 {[%emt 0:10:01]} Qa1+ {[%emt 0:00:00]} 33. Kg2 {[%emt 0:00:00]} Qxe5 {[%emt 0:00:00]} 34. Qd7 {[%emt 0:00:00]} Qf5 {[%emt 0:00:00]} 35. Qxa7 {[%emt 0:01:30]} e5 {[%emt 0:00:00]} 36. Ne2 {[%emt 0:00:30]} Qe4+ {[%emt 0:00:00]} 37. Kf1 {[%emt 0:00:30]} Qh1+ {[%emt 0:00:00]} 38. Ng1 {[%emt 0:00:00]} Qd5 {[%emt 0:05:00]} 39. Qe3 {[%emt 0:01:00]} Nb2 {[%emt 0:00:00]} 40. Qc5 {[%emt 0:00:30]} Qd3+ {[%emt 0:00:00]} 41. Kg2 {[%emt 0:23:16]} Nc4 {[%emt 0:31:30]} 42. Kh1 {[%emt 0:07:44]} Nxa3 {[%emt 0:00:00]} 43. Qxe5 {[%emt 0:00:00]} Nc2 {[%emt 0:01:00]} 44. Qc5 Qe4+ {[%emt 0:00:00]} 45. f3 {[%emt 0:00:00]} Qd3 {[%emt 0:00:00]} 46. Qe7 {[%emt 0:00:00]} f5 {[%emt 0:00:00]} 47. Kg2 {[%emt 0:00:00]} Ne3+ {[%emt 0:00:00]} 48. Kf2 {[%emt 0:00:00]} Nd5 {[%emt 0:00:00]} 49. Qc5 {[%emt 0:00:00]} Nc3 {[%emt 0:00:00]} 50. Qe5 {[%emt 0:00:00]} Nd5 {[%emt 0:00:00]} 51. Ne2 {[%emt 0:00:00]} Nxb4 {[%emt 0:00:00]} 52. Nd4 {[%emt 0:00:55]} Nc6 {[%emt 0:00:00]} 53. Nxc6 {[%emt 0:01:44]} Qc2+ {[%emt 0:00:00]} 54. Ke3 {[%emt 0:00:02]} Qxc6 {[%emt 0:00:00]} 55. Qxf5+ {[%emt 0:00:02]} Kg8 {[%emt 0:00:00]} 56. Qe5 {[%emt 0:00:15]} Qc1+ {[%emt 0:00:00]} 57. Ke2 {[%emt 0:01:03]} Qc2+ {[%emt 0:00:00]} 58. Ke3 {[%emt 0:00:07]} Qb3+ {[%emt 0:00:00]} 59. Ke4 {[%emt 0:01:05]} b4 {[%emt 0:00:00]} 60. Qd4 {[%emt 0:03:07]} Qb1+ {[%emt 0:00:00]} 61. Qd3 {[%emt 0:00:02]} Qa2 {[%emt 0:00:39]} 62. Kd4 {[%emt 0:00:56]} Qxh2 {[%emt 0:00:53]} 63. Qc4+ {[%emt 0:00:24]} Kh7 {[%emt 0:00:08]} 64. Qxb4 {[%emt 0:00:12]} Qxg3 {[%emt 0:00:05]} 65. Ke3 {[%emt 0:00:16]} h5 {[%emt 0:00:19]} 66. Qe4+ {[%emt 0:00:17]} Qg6 {[%emt 0:01:59]} 67. Qh4 {[%emt 0:00:23]} Qg1+ {[%emt 0:00:35]} 68. Ke2 {[%emt 0:00:31]} Qg2+ {[%emt 0:00:06]} 69. Ke3 {[%emt 0:00:04]} Kh6 {[%emt 0:00:09]} 70. f4 {[%emt 0:01:25]} Qg1+ {[%emt 0:00:48]} 71. Kf3 {[%emt 0:00:02]} Qd1+ {[%emt 0:00:22]} 72. Ke3 {[%emt 0:00:30]} Qg4 {[%emt 0:01:44]} 73. Qd8 {[%emt 0:00:04]} h4 {[%emt 0:02:48]} 74. Qh8+ {[%emt 0:00:15]} Kg6 {[%emt 0:00:03]} 75. Qe8+ {[%emt 0:00:03]} Kh7 {[%emt 0:00:04]} 76. Qe4+ {[%emt 0:00:16]} Kh6 {[%emt 0:00:30]} 77. Qc6+ {[%emt 0:00:33]} Qg6 {[%emt 0:00:33]} 78. Qc8 {[%emt 0:00:36]} Qg3+ {[%emt 0:00:37]} 79. Ke4 {[%emt 0:00:06]} Kh7 {[%emt 0:00:39]} 80. Qc5 {[%emt 0:03:05]} Qg2+ {[%emt 0:00:31]} 81. Kd3 {[%emt 0:00:02]} Qf3+ {[%emt 0:00:34]} 82. Kd2 Qxf4+ {[%emt 0:00:14]} 83. Ke2 {[%emt 0:00:12]} Kh6 {[%emt 0:01:16]} 84. Qc8 {[%emt 0:00:17]} g6 {[%emt 0:01:08]} 85. Ke1 {[%emt 0:01:23]} Qe5+ {[%emt 0:00:12]} 86. Kd2 {[%emt 0:00:15]} Kh5 {[%emt 0:00:17]} 87. Kd1 {[%emt 0:00:23]} Qf5 {[%emt 0:00:31]} 88. Qh8+ {[%emt 0:00:43]} Kg4 {[%emt 0:00:06]} 89. Qd4+ {[%emt 0:00:24]} Qf4 {[%emt 0:00:19]} 90. Qg1+ {[%emt 0:00:19]} Kh5 {[%emt 0:00:14]} 91. Qa7 {[%emt 0:00:10]} h3 {[%emt 0:02:06]} 92. Qh7+ {[%emt 0:00:06]} Qh6 {[%emt 0:00:02]} 93. Qd7 {[%emt 0:00:11]} Qe3 {[%emt 0:00:17]} 94. Qh7+ {[%emt 0:00:12]} Kg5 {[%emt 0:00:04]} 95. Qh8 {[%emt 0:00:04]} Kg4 {[%emt 0:01:00]} 96. Qc8+ {[%emt 0:00:15]} Kg3 {[%emt 0:00:20]} 97. Qa6 {[%emt 0:00:42]} g5 {[%emt 0:00:31]} 0-1

[Event "Czech Extraliga 2023-24"]
[Site "Czech Republic"]
[Date "2024.02.10"]
[Round "7.3"]
[White "Hrbek, Stepan"]
[Black "Krzyzanowski, Marcin"]
[Result "0-1"]
[ECO "E11"]
[WhiteElo "2426"]
[BlackElo "2519"]
[Annotator "TA"]
[PlyCount "106"]
[EventDate "2023.10.14"]
[EventCountry "CZE"]
[SourceTitle "playchess.com"]
[Source "ChessBase"]
[SourceQuality "1"]
[TimeControl "40/5400+30:1800+30"]

{[%evp 11,106,0,4,5,4,4,21,26,16,25,43,33,37,38,45,33,31,24,37,35,62,62,108,84,96,56,63,50,55,-18,-44,-30,-22,-33,27,-7,-10,0,0,0,-14,-3,-8,0,-4,-8,-6,-53,-60,-50,-47,-58,-35,-120,-72,-59,-35,-127,-27,-26,-16,-86,-110,-123,0,-30,-30,-109,-109,-110,-110,-191,-181,-200,-194,-195,-79,-211,-206,-242,-242,-239,-233,-320,-308,-496,-381,-470,-470,-470,-470,-462,-455,-448,-401,-29968,-29969]} 1. d4 {[%emt 0:00:06]} Nf6 {[%emt 1:31:00]} 2. c4 {[%emt 0:00:11]} e6 {[%emt 0:00:00]} 3. Nf3 {[%emt 0:00:26]} Bb4+ {[%emt 0:00:00]} 4. Bd2 {[%emt 0:01:00]} Qe7 {[%emt 0:00:00]} 5. Nc3 {[%emt 0:04:25]} O-O {[%emt 0:00:00]} 6. Qc2 {[%emt 0:04:18]} d5 {[%emt 0:00:00]} 7. a3 {[%emt 0:05:36]} Bxc3 {[%emt 0:00:00]} 8. Bxc3 {[%emt 0:00:08] Bb4 is the strong threat.} Ne4 {[%emt 0:00:00]} 9. e3 {[%emt 0:04:49] The position is equal.} Nxc3 {[%emt 0:00:00]} 10. Qxc3 {[%emt 0:00:34]} b6 {[%emt 0:00:00]} 11. cxd5 {[%emt 0:06:15]} exd5 {[%emt 0:00:00]} 12. Rc1 {[%emt 0:00:35]} c6 {[%emt 0:00:00]} 13. Bd3 {[%emt 0:00:43]} Bb7 {[%emt 0:00:00]} 14. O-O {[%emt 0:00:57]} Nd7 {[%emt 0:00:00]} 15. Rfe1 {[%emt 0:11:46]} f5 {[%emt 0:00:00]} 16. b4 {[%emt 0:19:35]} Rae8 {[%emt 0:00:00]} (16... a5 $14) 17. Qc2 {[%emt 0:02:44]} Qf6 {[%emt 0:00:00]} 18. Qa4 {[%emt 0:00:28]} Ra8 {[%emt 0:00:00]} 19. Ba6 {[%emt 0:02:18]} Bxa6 {[%emt 0:00:00]} 20. Rxc6 {[%emt 0:20:58]} (20. Qxa6 $14 Rfc8 21. Qb7) 20... Qf7 $11 {[%emt 0:00:00] ...Bc4 would now be deadly.} 21. Rc7 {[%emt 0:00:38]} Bc8 {[%emt 0:00:00]} 22. Rec1 {[%emt 0:01:20][%cal Oa4c6]} f4 {[%emt 0:00:00]} ({Black should play} 22... Qg6 $15) 23. Qc6 {[%emt 0:02:52]} Rb8 {[%emt 0:00:00] Black wants to play ...fxe3.} 24. Ng5 {[%emt 0:00:57]} Qf5 {[%emt 0:01:52]} 25. Qe6+ $1 {[%emt 0:04:48]} Qxe6 {[%emt 0:00:01]} 26. Nxe6 {[%emt 0:00:07]} Re8 {[%emt 0:01:07]} 27. Nxf4 {[%emt 0:00:05]} Nf6 {[%emt 0:00:59]} 28. Rxa7 {[%emt 0:01:17]} Rb7 $36 {[%emt 0:00:27][%mdl 2048] Black has some pressure.} 29. Ra8 {[%emt 0:01:05]} (29. Rxb7 $11 Bxb7 30. Rc7) 29... Bd7 $15 {[%emt 0:00:45]} 30. Rxe8+ {[%emt 0:00:07]} Bxe8 {[%emt 0:00:05]} 31. Rc8 {[%emt 0:02:41][%cal Of4d5]} Kf7 {[%emt 0:00:38]} 32. h3 {[%emt 0:00:31]} (32. h4 $15) 32... Bb5 {[%emt 0:00:43]} (32... Ra7 $142 {[%cal Og7g5]} 33. h4 Rxa3 34. Rc7+ Kg8) 33. h4 $17 {[%emt 0:01:52]} Ra7 {[%emt 0:00:03][%cal Ob5c4]} 34. Rb8 {[%emt 0:00:21]} (34. f3 $1 $15) 34... Nd7 {[%emt 0:01:45]} ({Much weaker is} 34... Rxa3 $6 35. Rb7+ Ke8 36. Rxg7 $11) ({Black should try} 34... Ng4 $1 $17 35. f3 (35. Nxd5 $2 Rxa3 36. g3 Bc6 $17) 35... Nxe3 36. Rxb6 Bd7) 35. Rd8 $11 {[%emt 0:00:33]} Bc4 {[%emt 0:01:48][%cal Od7f6]} 36. a4 {[%emt 0:00:39]} Nf6 $1 $17 {[%emt 0:01:49]} 37. Rb8 {[%emt 0:00:19]} Nd7 {[%emt 0:03:28]} ({Don't take} 37... Rxa4 38. Rb7+ Ke8 39. Rxg7 $11) ({Better is} 37... Ng4 $1 $17 38. f3 Nxe3 39. Rxb6 Nf5 (39... Rxa4 40. Rb7+ Ke8 41. Rxg7 $15)) 38. Rd8 $11 {[%emt 0:00:09]} h6 {[%emt 0:01:14][%cal Od7f6]} 39. a5 {[%emt 0:01:08]} bxa5 $17 {[%emt 0:00:26]} 40. bxa5 {[%emt 0:00:06]} Nf6 {[%emt 0:01:04][%cal Of6g4]} 41. h5 {[%emt 0:10:31]} (41. Kh2 $17) 41... Rxa5 $19 {[%emt 0:03:03]} 42. f3 {[%emt 0:01:03] Wards off Ng4} Ra1+ {[%emt 0:02:05]} 43. Kf2 {[%emt 0:01:09] [#]} Rf1+ $1 {[%emt 0:00:15]} 44. Kg3 {[%emt 0:00:08] [#] Now White is beyond hope.} Rh1 $1 {[%emt 0:00:03]} 45. Ra8 {[%emt 0:08:58]} Nxh5+ {[%emt 0:00:36]} 46. Nxh5 {[%emt 0:00:02]} Rxh5 {[%emt 0:00:04][%mdl 4096] Endgame. KRB-KR} 47. Kf4 {[%emt 0:00:06]} Rh2 {[%emt 0:01:44]} 48. g4 $2 {[%emt 0:01:29]} (48. Kg3 Rh1 49. Rc8) 48... Rf2 {[%emt 0:01:00] White must now prevent ...Be2.} 49. e4 {[%emt 0:01:28]} dxe4 {[%emt 0:02:36]} 50. Kxe4 {[%emt 0:00:02]} Re2+ {[%emt 0:00:26]} 51. Kf4 {[%emt 0:00:06]} Kf6 {[%emt 0:01:01]} 52. Rf8+ {[%emt 0:01:02]} Bf7 {[%emt 0:00:06]} 53. Rh8 {[%emt 0:00:11]} (53. Rd8 $19) 53... Re8 {[%emt 0:01:00] Weighted Error Value: White=0.41/Black=0.16 (very precise) .  Mistake:       	White=9     	Black=5      Inaccurate:     	White=4     	Black=1      OK:         	White=10    	Black=23     Best:        	White=6     	Black=6      Strong:       	White=1     	Black=3} 0-1

[Event "Czech Extraliga 2023-24"]
[Site "Czech Republic"]
[Date "2024.02.10"]
[Round "7.4"]
[White "Krejci, Jan"]
[Black "Vrolijk, Liam"]
[Result "1-0"]
[ECO "D02"]
[WhiteElo "2530"]
[BlackElo "2573"]
[Annotator "RC"]
[PlyCount "121"]
[EventDate "2023.10.14"]
[EventCountry "CZE"]
[SourceTitle "playchess.com"]
[Source "ChessBase"]
[SourceQuality "1"]
[TimeControl "40/5400+30:1800+30"]

1. d4 {[%emt 0:00:02]} Nf6 {[%emt 0:00:08]} 2. Nf3 {[%emt 0:00:04]} d5 {[%emt 0:00:14]} 3. Bf4 {[%emt 0:00:18]} c5 {[%emt 0:01:08]} 4. e3 {[%emt 0:00:12]} Nc6 {[%emt 0:01:28]} 5. c3 {[%emt 0:06:38]} Qb6 {[%emt 0:03:25]} 6. Qb3 {[%emt 0:00:08]} c4 {[%emt 0:02:48]} 7. Qc2 {[%emt 0:00:04]} Bf5 {[%emt 0:02:22]} 8. Qc1 {[%emt 0:00:01]} h6 {[%emt 0:05:10]} 9. Nbd2 {[%emt 0:01:35]} Qd8 {[%emt 0:08:26]} 10. Ne5 {[%emt 0:09:19]} e6 {[%emt 0:19:05]} 11. b3 {[%emt 0:06:09]} cxb3 {[%emt 0:00:25]} 12. Nxc6 {[%emt 0:00:11]} bxc6 {[%emt 0:00:09]} 13. axb3 {[%emt 0:00:15]} Be7 {[%emt 0:02:52]} 14. Ba6 {[%emt 0:03:45]} Qb6 {[%emt 0:09:19]} 15. c4 {[%emt 0:02:53]} Bb4 {[%emt 0:18:34]} 16. c5 {[%emt 0:00:22]} Bxd2+ {[%emt 0:02:01]} 17. Qxd2 {[%emt 0:00:01]} Qxb3 {[%emt 0:00:12]} 18. O-O {[%emt 0:00:09]} O-O {[%emt 0:01:42]} 19. Qa2 {[%emt 0:01:12]} Bc2 {[%emt 0:06:22]} 20. Qa5 {[%emt 0:06:27]} Rfe8 {[%emt 0:02:14]} 21. Ra3 {[%emt 0:06:12]} Qb2 {[%emt 0:00:07]} 22. Rfa1 {[%emt 0:00:27]} Bg6 {[%emt 0:02:32]} 23. R3a2 {[%emt 0:02:38]} Qb3 {[%emt 0:00:12]} 24. Qa3 {[%emt 0:00:06]} Qxa3 {[%emt 0:01:49]} 25. Rxa3 {[%emt 0:00:10]} Re7 {[%emt 0:00:08]} 26. Rb3 {[%emt 0:02:11]} Ne4 {[%emt 0:06:22]} 27. Bb7 {[%emt 0:12:06]} Rd8 {[%emt 0:00:17]} 28. Bxc6 {[%emt 0:02:11]} e5 {[%emt 0:00:15]} 29. Bxe5 {[%emt 0:01:07]} Nxc5 {[%emt 0:00:38]} 30. Rb8 {[%emt 0:03:36]} Rxb8 {[%emt 0:00:29]} 31. Bxb8 {[%emt 0:00:01]} Nd7 {[%emt 0:00:34]} 32. Bxa7 {[%emt 0:06:05]} Nf6 {[%emt 0:00:10]} 33. Bb8 {[%emt 0:00:09]} Re6 {[%emt 0:01:09]} 34. Rc1 {[%emt 0:07:26]} Bd3 {[%emt 0:00:19]} 35. Be5 {[%emt 0:02:43]} Bc4 {[%emt 0:00:11]} 36. Ba4 {[%emt 0:00:15]} Ra6 {[%emt 0:00:38]} 37. Bc2 {[%emt 0:04:26]} Ne4 {[%emt 0:00:25]} 38. Bxe4 {[%emt 0:02:29]} dxe4 {[%emt 0:00:07]} 39. f3 {[%emt 0:00:02]} Bd5 {[%emt 0:03:37]} 40. Rc8+ {[%emt 0:01:37]} Kh7 {[%emt 0:00:07]} 41. Rc5 {[%emt 0:30:03]} Bb7 {[%emt 0:07:32]} 42. Rc7 {[%emt 0:00:00]} Bd5 {[%emt 0:03:25]} 43. Rc5 {[%emt 0:00:00]} Bb7 {[%emt 0:00:17]} 44. d5 {[%emt 0:00:00]} f6 {[%emt 0:04:54]} 45. Bc3 {[%emt 0:00:00]} exf3 {[%emt 0:02:29]} 46. gxf3 {[%emt 0:00:00]} Ra8 {[%emt 0:04:12]} 47. Rb5 {[%emt 0:00:00]} Ba6 {[%emt 0:00:42]} 48. Ra5 {[%emt 0:00:00]} Bb7 {[%emt 0:01:07]} 49. Rxa8 {[%emt 0:00:00]} Bxa8 {[%emt 0:00:10]} 50. e4 {[%emt 0:00:00]} Kg8 {[%emt 0:01:28]} 51. Kf2 {[%emt 0:00:00]} Kf7 {[%emt 0:00:26]} 52. Ke3 {[%emt 0:00:00]} g5 {[%emt 0:07:26]} 53. Kd4 {[%emt 0:00:00]} Bb7 {[%emt 0:00:43]} 54. Kc5 {[%emt 0:00:00]} Bc8 {[%emt 0:01:56]} 55. Kc6 {[%emt 0:00:00]} Bh3 {[%emt 0:01:03]} 56. d6 {[%emt 0:00:00]} Ke8 {[%emt 0:00:30]} 57. Bxf6 {[%emt 0:00:00]} Bd7+ {[%emt 0:00:07]} 58. Kc7 {[%emt 0:00:00]} Ba4 {[%emt 0:01:19]} 59. Bg7 {[%emt 0:00:00]} h5 {[%emt 0:00:07]} 60. Bf6 {[%emt 0:00:00]} g4 {[%emt 0:00:09]} 61. f4 {[%emt 0:00:00]} 1-0

[Event "Czech Extraliga 2023-24"]
[Site "Czech Republic"]
[Date "2024.02.10"]
[Round "7.4"]
[White "LIN4 Petr Martin GM"]
[Black "NOV6 Grandelius Nils GM"]
[Result "0-1"]
[ECO "E14"]
[WhiteElo "2472"]
[BlackElo "2689"]
[Annotator "TA"]
[PlyCount "106"]
[EventDate "2023.10.14"]
[EventCountry "CZE"]
[SourceTitle "playchess.com"]
[Source "ChessBase"]
[SourceQuality "1"]
[TimeControl "40/5400+30:1800+30"]

{[%evp 23,106,0,0,-12,0,-4,19,0,0,0,0,0,14,-21,-27,-53,-33,-37,-43,-53,-66,-63,-39,-103,-99,-223,-228,-208,-228,-201,-222,-212,-217,-227,-210,-197,-214,-254,-254,-254,-231,-286,-308,-325,-318,-327,-324,-361,-357,-351,-353,-395,-356,-400,-395,-458,-487,-470,-466,-473,-487,-489,-488,-942,-529,-523,-512,-614,-599,-620,-600,-550,-531,-620,-608,-596,-577,-592,-592,-548,-506,-499,-508,-634,-634]} 1. Nf3 {[%emt 0:00:49]} d5 {[%emt 0:01:18]} 2. d4 {[%emt 0:00:22]} Nf6 {[%emt 0:00:41]} 3. c4 {[%emt 0:00:59]} e6 {[%emt 0:04:19]} 4. e3 {[%emt 0:00:43]} b6 {[%emt 0:02:46]} 5. b3 {[%emt 0:02:45]} Bb7 {[%emt 0:00:52]} 6. Bd3 {[%emt 0:00:16]} Bd6 {[%emt 0:01:12]} 7. O-O {[%emt 0:03:13]} O-O {[%emt 0:01:54]} 8. Nc3 {[%emt 0:01:31][%cal Bb1c3,Bc3e2,Be2g3][%mdl 32]} a6 {[%emt 0:01:26]} 9. Bb2 {[%emt 0:10:54]} Nbd7 {[%emt 0:00:53]} 10. Rc1 {[%emt 0:02:35]} Qe7 {[%emt 0:01:38]} 11. cxd5 {[%emt 0:04:51]} exd5 {[%emt 0:01:28]} 12. Ne2 {[%emt 0:00:05]} Ne4 {[%emt 0:03:22]} 13. Rc2 {[%emt 0:04:50]} Rae8 {[%emt 0:04:20]} 14. Qc1 {[%emt 0:07:37][%cal Oc2c7]} c5 {[%emt 0:13:54]} 15. dxc5 {[%emt 0:16:59] The position is equal.} bxc5 {[%emt 0:02:05]} 16. Bxe4 {[%emt 0:00:20]} Qxe4 {[%emt 0:05:03]} 17. Ng3 {[%emt 0:04:34]} Qe6 {[%emt 0:02:45]} 18. Qa1 {[%emt 0:03:52]} f6 {[%emt 0:01:10]} 19. Re1 {[%emt 0:05:53]} a5 {[%emt 0:11:15]} 20. Qc1 {[%emt 0:02:25]} a4 {[%emt 0:10:06]} 21. Ba3 {[%emt 0:02:34]} axb3 {[%emt 0:03:09]} 22. axb3 {[%emt 0:00:03][%cal Ob3b4]} Rc8 {[%emt 0:02:36]} 23. Rc3 {[%emt 0:02:45]} (23. Qd2 $15) 23... Rfe8 $17 {[%emt 0:01:59]} 24. Rd1 {[%emt 0:01:46] [#] Loses the game.} (24. h3 $17) 24... d4 $1 $19 {[%emt 0:14:23][%mdl 512]} 25. exd4 {[%emt 0:00:07]} cxd4 {[%emt 0:00:05]} 26. Nxd4 {[%emt 0:01:41]} Qd5 {[%emt 0:06:08][%csl Gb7][%cal Rd5g2]} 27. Nc6 {[%emt 0:05:10]} Bxa3 $40 {[%emt 0:00:07][%mdl 128] Black goes for the king. This pair of bishops is nice.} 28. Ne7+ {[%emt 0:00:41]} Bxe7 {[%emt 0:00:25]} 29. Rxd5 {[%emt 0:00:56]} Rxc3 {[%emt 0:00:00]} 30. Qd2 {[%emt 0:04:31]} Bxd5 {[%emt 0:00:34]} (30... Rxb3 31. Rxd7 Rb1+ 32. Nf1 $14) 31. Qxc3 {[%emt 0:04:28]} (31. Qxd5+ $2 Kf8 32. Qd2 (32. Qxd7 $2 Rd8 $19) 32... Bb4 $19 (32... Rxb3 $2 33. h3 $19) (32... Rc7 $2 33. h4 $19)) 31... Be6 {[%emt 0:00:17]} 32. b4 {[%emt 0:01:36]} Rb8 {[%emt 0:00:42]} 33. Qc6 {[%emt 0:02:15]} Rb6 {[%emt 0:01:46]} 34. Qa8+ {[%emt 0:01:34]} Kf7 {[%emt 0:00:27]} 35. Qe4 {[%emt 0:00:13]} g6 {[%emt 0:00:43]} (35... Rxb4 36. Qxh7 Rc4 37. h3 $17) 36. h3 {[%emt 0:01:29]} Rxb4 {[%emt 0:00:11]} 37. Qe3 {[%emt 0:00:14]} Bd6 {[%emt 0:01:59]} 38. Qd3 {[%emt 0:00:42]} Be5 {[%emt 0:00:38]} 39. Ne2 {[%emt 0:00:56]} Nc5 {[%emt 0:00:38] Black is clearly winning.} 40. Qc2 {[%emt 0:00:13]} Rc4 {[%emt 0:00:21]} 41. Qd2 {[%emt 0:30:54]} Ra4 {[%emt 0:08:36] White must now prevent ...Ra1+.} 42. f4 {[%emt 0:00:00]} Bc7 {[%emt 0:01:06]} 43. Nd4 {[%emt 0:00:00]} (43. Qc1 $142 Bd6 44. Kh2) 43... Ne4 {[%emt 0:07:18]} 44. Qb2 {[%emt 0:00:00] Wards off Ra1+. And now Nxe6 would win.} Bd5 {[%emt 0:00:13][%cal Oa4a2] Hoping for ...Ra2!} ({Not} 44... Bxf4 45. Nxe6 (45. Qb7+ $2 Kg8 $19) 45... Be3+ 46. Kh2 $11) 45. Nc2 {[%emt 0:00:00] Qb5 is the strong threat.} Bd6 {[%emt 0:04:58][%cal Oa4c4]} ({And not} 45... Bxf4 46. Qb5 Nc3 47. Qd7+ Kg8 48. Qc8+ Kg7 49. Qxc3 $11) 46. Qb5 {[%emt 0:00:00]} Nc5 {[%emt 0:01:13][%cal Oa4c4]} 47. Qb6 {[%emt 0:00:00]} Ra6 {[%emt 0:00:23]} ({Worse is} 47... Bxf4 48. Qxc5 Be6 49. Ne1 $11) 48. Qd8 {[%emt 0:00:00]} Kg7 {[%emt 0:02:27]} 49. g4 {[%emt 0:00:00]} Bf7 {[%emt 0:01:28][%cal Oc5e4] Threatens to win with ...Ne4!} 50. g5 {[%emt 0:00:00]} fxg5 {[%emt 0:01:32]} 51. fxg5 {[%emt 0:00:00]} Ne6 {[%emt 0:00:14]} 52. Qf6+ {[%emt 0:00:00]} Kg8 {[%emt 0:00:01]} 53. h4 {[%emt 0:00:00]} Ra4 {[%emt 0:00:30] Weighted Error Value: White=0.38/Black=0.18 (very precise) .  Mistake:       	White=3     	---        Inaccurate:     	White=2     	Black=1      OK:         	White=15    	Black=22     Best:        	White=2     	Black=3      Brilliant:      	---       	Black=1} 0-1